bitfinex-derivatives/quotes_BTCF0:USTF0_20241208
["timestamp","ask_amount","ask_price","bid_price","bid_amount"]
[1733661121434,0.05309,99734.0,99733.0,0.00825556]
[1733661121637,0.41489,99734.0,99733.0,0.00825556]
[1733661122044,0.41489,99734.0,99733.0,0.0001084]
[1733661122346,0.41589,99734.0,99733.0,0.0082556]
[1733661123145,0.56578672,99734.0,99733.0,0.0082556]
[1733661124248,0.41589,99734.0,99733.0,0.0082556]
[1733661125148,0.46462755,99734.0,99733.0,0.0082556]
[1733661127653,0.10382755,99734.0,99733.0,0.0082556]
[1733661127855,0.46462755,99734.0,99733.0,0.0082556]
[1733661128547,0.56578019,99734.0,99733.0,0.0082556]
[1733661128853,0.46462759,99734.0,99715.0,0.01989566]
[1733661129058,0.045098,99716.0,99715.0,0.00989566]
[1733661129248,0.16499889,99716.0,99715.0,0.18015047]
[1733661129549,0.045098,99716.0,99715.0,0.18021091]
[1733661129756,0.045098,99716.0,99715.0,8.771e-05]
[1733661130453,0.045098,99716.0,99715.0,0.18029862]
[1733661130848,0.045098,99716.0,99715.0,0.18129862]
[1733661131050,0.16499889,99716.0,99715.0,0.22639762]
[1733661131243,0.045098,99716.0,99715.0,0.22639197]
[1733661131644,0.16499889,99716.0,99715.0,0.22639197]
[1733661132044,0.16499889,99716.0,99715.0,0.04618671]
[1733661132359,0.045098,99716.0,99715.0,0.2263765]
[1733661133650,0.045098,99716.0,99715.0,0.04618671]
[1733661133855,0.046098,99716.0,99715.0,0.04518671]
[1733661135754,0.046098,99716.0,99715.0,8.771e-05]
[1733661137949,0.04618697,99716.0,99715.0,8.771e-05]
[1733661138255,0.19606308,99716.0,99715.0,8.771e-05]
[1733661138756,0.19606308,99716.0,99715.0,0.00510255]
[1733661138963,0.04618697,99716.0,99715.0,0.00510255]
[1733661139259,0.04618697,99716.0,99715.0,8.771e-05]
[1733661140259,0.19589187,99716.0,99715.0,8.771e-05]
[1733661140648,0.19589187,99716.0,99715.0,0.003222]
[1733661141266,0.1958798,99716.0,99715.0,0.003222]
[1733661141453,0.00108897,99716.0,99715.0,0.00823668]
[1733661141857,0.00108897,99716.0,99715.0,0.04043668]
[1733661142163,0.00108897,99716.0,99715.0,0.08417658]
[1733661142760,0.00108897,99716.0,99715.0,0.09431412]
[1733661143470,0.00108897,99716.0,99715.0,0.08417658]
[1733661145064,0.00108897,99716.0,99715.0,0.06860155]
[1733661145363,0.00108897,99716.0,99715.0,0.08417356]
[1733661147161,0.00108897,99716.0,99715.0,0.0717352]
[1733661147671,0.00108897,99716.0,99715.0,0.08417561]
[1733661149461,0.00108897,99716.0,99715.0,0.12927461]
[1733661151272,0.00108897,99716.0,99715.0,0.3094644]
[1733661151756,0.00108897,99716.0,99715.0,0.12927461]
[1733661152670,0.00108897,99716.0,99715.0,0.36842253]
[1733661152869,0.00108897,99716.0,99715.0,0.12927461]
[1733661154565,0.00108897,99716.0,99715.0,0.42820951]
[1733661154865,0.00108897,99716.0,99715.0,0.40475258]
[1733661155876,0.00108897,99716.0,99715.0,0.39231217]
[1733661156067,0.00108897,99716.0,99715.0,0.40475301]
[1733661158766,0.00108897,99716.0,99715.0,0.12927504]
[1733661159479,0.00108897,99716.0,99715.0,0.12926851]
[1733661161777,0.01498369,99739.0,99732.0,0.045091]
[1733661162076,0.11976608,99751.0,99746.0,0.045085]
[1733661162282,0.032,99757.0,99756.0,0.04508]
[1733661163170,0.032,99757.0,99756.0,0.0532245]
[1733661163171,0.119761,99757.0,99756.0,0.0532245]
[1733661163372,8.402e-05,99759.0,99758.0,0.045079]
[1733661163573,8.402e-05,99759.0,99758.0,0.0482115]
[1733661163782,8.402e-05,99759.0,99758.0,0.0532235]
[1733661164879,0.01708402,99759.0,99758.0,0.0542235]
[1733661166687,0.01708402,99759.0,99758.0,0.05422317]
[1733661169387,0.01708402,99759.0,99758.0,0.00914417]
[1733661169388,0.42296302,99759.0,99758.0,0.00914417]
[1733661169574,0.37788402,99759.0,99742.0,0.00030239]
[1733661169781,0.045086,99744.0,99743.0,0.05747757]
[1733661169980,0.045086,99744.0,99743.0,0.045086]
[1733661170883,1.56410001,99746.0,99745.0,0.045085]
[1733661171082,1.5633,99746.0,99745.0,0.045085]
[1733661172786,1.5946,99746.0,99745.0,0.045085]
[1733661172985,0.0946,99746.0,99745.0,0.045085]
[1733661173183,0.1036,99746.0,99745.0,0.045085]
[1733661176094,0.1096,99746.0,99745.0,0.046085]
[1733661178388,0.1096,99746.0,99741.0,0.01]
[1733661178589,0.045087,99740.0,99739.0,0.045088]
[1733661179193,0.045087,99740.0,99738.0,0.3658]
[1733661179691,0.054087,99740.0,99739.0,0.00501291]
[1733661180193,0.054087,99740.0,99738.0,0.005]
[1733661180386,0.059087,99740.0,99738.0,0.005]
[1733661180589,0.14970125,99739.0,99738.0,0.005]
[1733661180890,0.04509,99734.0,99733.0,0.005]
[1733661181094,0.04509,99734.0,99733.0,0.00501316]
[1733661181599,0.04509,99734.0,99733.0,0.00814646]
[1733661183479,0.04909,99734.0,99733.0,0.00814646]
[1733661183880,0.05709,99734.0,99733.0,0.00814646]
[1733661184085,0.05709,99734.0,99733.0,0.00814659]
[1733661191995,0.17664276,99734.0,99733.0,0.00814659]
[1733661192190,0.05709,99734.0,99733.0,0.00814659]
[1733661198187,0.05709,99734.0,99728.0,0.050093]
[1733661198188,0.045092,99729.0,99728.0,0.050093]
[1733661198392,0.405892,99729.0,99728.0,0.05950675]
[1733661198705,0.405892,99729.0,99728.0,0.0532399]
[1733661198890,0.045092,99729.0,99728.0,0.05950675]
[1733661199083,0.16481335,99729.0,99728.0,0.05950675]
[1733661199288,0.16485993,99729.0,99728.0,0.05950675]
[1733661199593,0.17385993,99729.0,99728.0,0.05950675]
[1733661199897,0.054092,99729.0,99728.0,0.05950675]
[1733661201194,0.009,99729.0,99728.0,0.05950675]
[1733661201395,0.004092,99729.0,99728.0,0.05950675]
[1733661201587,0.004092,99729.0,99728.0,0.07198436]
[1733661202197,0.004092,99729.0,99728.0,0.31187724]
[1733661202398,0.004092,99729.0,99728.0,0.07198436]
[1733661205193,0.004092,99729.0,99728.0,0.07198107]
[1733661206691,0.049184,99729.0,99728.0,0.07198107]
[1733661207202,0.049184,99729.0,99728.0,0.25216781]
[1733661207393,0.049184,99729.0,99728.0,0.25219017]
[1733661207709,0.049184,99729.0,99728.0,0.23971495]
[1733661208002,0.049184,99729.0,99728.0,0.23031526]
[1733661208206,0.049184,99729.0,99728.0,0.2253021]
[1733661208394,0.049184,99729.0,99728.0,0.25219395]
[1733661209000,0.049184,99729.0,99728.0,0.25219425]
[1733661209203,0.049184,99729.0,99728.0,0.045093]
[1733661209399,0.049184,99729.0,99728.0,0.06571911]
[1733661209705,0.049184,99729.0,99728.0,0.07198556]
[1733661210501,0.049184,99729.0,99728.0,0.02062611]
[1733661210702,0.049184,99729.0,99728.0,0.00814638]
[1733661211393,0.19871757,99729.0,99728.0,0.00844978]
[1733661211597,0.19871757,99729.0,99728.0,0.01471655]
[1733661211815,0.19871757,99729.0,99728.0,0.01441315]
[1733661212699,0.049184,99729.0,99728.0,0.01441357]
[1733661212900,0.09791927,99729.0,99728.0,0.01441357]
[1733661214504,0.09791927,99729.0,99728.0,0.0081468]
[1733661215705,0.05282727,99729.0,99723.0,0.005]
[1733661215904,0.045095,99724.0,99723.0,0.005]
[1733661216105,0.045095,99724.0,99723.0,0.00814736]
[1733661216407,0.045095,99724.0,99723.0,0.02068189]
[1733661216604,0.09383388,99724.0,99723.0,0.01441465]
[1733661217202,0.09783388,99724.0,99723.0,0.01441465]
[1733661217410,0.09783389,99724.0,99723.0,0.01441465]
[1733661218303,0.049095,99724.0,99723.0,0.01441465]
[1733661218505,0.049095,99724.0,99723.0,0.00814741]
[1733661218807,0.051095,99724.0,99723.0,0.00814741]
[1733661219605,0.051095,99724.0,99723.0,0.01441488]
[1733661221695,0.20086831,99724.0,99723.0,0.01441488]
[1733661222112,0.20086831,99724.0,99723.0,0.00814741]
[1733661222113,0.09983759,99724.0,99723.0,0.00814741]
[1733661222608,0.09983795,99724.0,99723.0,0.00814741]
[1733661223199,0.045097,99719.0,99718.0,0.005]
[1733661223414,0.3608,99719.0,99718.0,0.01441631]
[1733661223603,0.405897,99719.0,99718.0,0.01441631]
[1733661223803,0.405897,99719.0,99715.0,8.771e-05]
[1733661223804,0.045098,99716.0,99715.0,8.771e-05]
[1733661224005,0.045098,99716.0,99715.0,0.01450402]
[1733661224902,0.046098,99716.0,99715.0,0.01450402]
[1733661226110,0.046098,99716.0,99715.0,0.00823606]
[1733661229116,0.16578796,99716.0,99715.0,0.00823606]
[1733661229816,0.52658796,99716.0,99715.0,0.00823606]
[1733661230309,0.52658796,99716.0,99715.0,8.771e-05]
[1733661230509,0.52658796,99716.0,99715.0,0.00823613]
[1733661231513,0.406898,99716.0,99715.0,0.00823613]
[1733661232104,0.52658796,99716.0,99715.0,0.00823613]
[1733661233011,0.52658796,99716.0,99715.0,0.00831613]
[1733661233417,0.405898,99716.0,99715.0,0.00831613]
[1733661233719,0.410898,99716.0,99715.0,0.00831613]
[1733661234117,0.412898,99716.0,99715.0,0.00831613]
[1733661234717,0.46164537,99716.0,99715.0,0.00831613]
[1733661235604,0.46164537,99716.0,99715.0,0.00831642]
[1733661237312,0.46164537,99716.0,99715.0,0.00330172]
[1733661237820,0.3678,99716.0,99715.0,0.05341549]
[1733661238019,0.3678,99716.0,99715.0,0.01458449]
[1733661238322,0.412898,99716.0,99715.0,0.01458449]
[1733661242318,0.052098,99716.0,99715.0,0.01458449]
[1733661243321,0.052098,99716.0,99715.0,0.05968349]
[1733661244024,0.412898,99716.0,99715.0,0.05968349]
[1733661244420,0.052098,99716.0,99715.0,0.05968349]
[1733661244729,0.412898,99716.0,99715.0,0.05968349]
[1733661245720,0.412898,99716.0,99715.0,0.01458449]
[1733661246626,0.5626038,99716.0,99715.0,0.01458449]
[1733661246823,0.412898,99716.0,99715.0,0.01458449]
[1733661247221,0.5626038,99716.0,99715.0,0.01458449]
[1733661247817,0.5626038,99716.0,99715.0,0.01458408]
[1733661247818,0.412898,99716.0,99715.0,0.01458408]
[1733661248018,0.46164323,99716.0,99715.0,0.01458408]
[1733661248216,0.64128473,99716.0,99715.0,0.01458408]
[1733661248425,0.60830459,99716.0,99715.0,0.00831609]
[1733661249125,0.60830459,99716.0,99715.0,0.01458449]
[1733661250324,0.46164565,99716.0,99715.0,0.01458449]
[1733661250928,0.46164565,99716.0,99715.0,0.05968349]
[1733661253131,0.46164565,99716.0,99715.0,0.05968313]
[1733661255518,0.46164565,99716.0,99715.0,0.01458413]
[1733661257026,0.64174186,99716.0,99715.0,0.01458413]
[1733661257228,0.46164565,99716.0,99715.0,0.01458413]
[1733661258435,0.46164565,99716.0,99715.0,0.0145844]
[1733661261827,0.46264565,99716.0,99715.0,0.0145844]
[1733661262133,0.46064565,99716.0,99715.0,0.0145844]
[1733661262332,0.46264565,99716.0,99715.0,0.0145844]
[1733661263125,0.46364565,99716.0,99715.0,0.0145844]
[1733661263930,0.46464565,99716.0,99715.0,0.0145844]
[1733661264632,0.46564565,99716.0,99715.0,0.0145844]
[1733661265329,0.46564565,99716.0,99715.0,0.01458415]
[1733661266128,0.46564565,99716.0,99715.0,0.00016771]
[1733661267341,0.10484565,99716.0,99715.0,0.00016771]
[1733661267540,0.46564565,99716.0,99715.0,0.00016771]
[1733661270228,0.46564598,99716.0,99715.0,0.01458415]
[1733661270829,0.61246345,99716.0,99715.0,0.00016771]
[1733661271626,0.46564598,99716.0,99715.0,0.00016771]
[1733661272237,0.46564556,99716.0,99715.0,0.00016771]
[1733661272433,0.10484556,99716.0,99715.0,0.00016771]
[1733661272634,0.46564556,99716.0,99715.0,0.00016771]
[1733661272827,0.46564556,99716.0,99715.0,0.00831658]
[1733661273939,0.46564556,99716.0,99715.0,0.00831668]
[1733661274132,0.46564556,99716.0,99715.0,0.00518246]
[1733661274328,0.46564556,99716.0,99715.0,0.00831668]
[1733661275349,0.46564556,99716.0,99715.0,0.01458512]
[1733661275731,0.61240626,99716.0,99715.0,0.01458512]
[1733661276343,0.61240626,99716.0,99715.0,0.00831668]
[1733661276834,0.46564556,99716.0,99715.0,0.00831668]
[1733661279835,0.61163645,99716.0,99715.0,0.00831668]
[1733661280042,0.61163645,99716.0,99700.0,0.1]
[1733661280043,0.045105,99701.0,99700.0,0.1]
[1733661280244,0.045105,99701.0,99700.0,0.10626902]
[1733661280439,0.09385256,99701.0,99700.0,0.10626902]
[1733661281150,0.09493256,99701.0,99700.0,0.10626902]
[1733661281443,0.09693256,99701.0,99700.0,0.10626902]
[1733661281942,0.22835354,99701.0,99700.0,0.1]
[1733661282146,0.09593256,99701.0,99700.0,0.1]
[1733661282343,0.09693256,99701.0,99700.0,0.1]
[1733661283240,0.0970503,99701.0,99700.0,0.1]
[1733661283742,0.0970503,99701.0,99690.0,9.214e-05]
[1733661283743,0.04511,99691.0,99690.0,9.214e-05]
[1733661283949,0.45465756,99691.0,99690.0,9.214e-05]
[1733661284148,0.45473756,99691.0,99690.0,9.214e-05]
[1733661284442,0.55590918,99691.0,99690.0,9.214e-05]
[1733661285043,0.55590918,99691.0,99690.0,0.00109214]
[1733661285251,0.55590918,99691.0,99690.0,0.00209214]
[1733661285444,0.40599,99691.0,99690.0,0.00209214]
[1733661286041,0.40599,99691.0,99690.0,0.00109214]
[1733661286351,0.56490918,99691.0,99690.0,9.214e-05]
[1733661286549,0.41499,99691.0,99690.0,9.214e-05]
[1733661286845,0.045116,99676.0,99675.0,0.0631]
[1733661287051,0.48066632,99676.0,99665.0,0.00030335]
[1733661287248,0.48066632,99676.0,99658.0,0.60104248]
[1733661287249,0.045122,99663.0,99661.0,0.06360335]
[1733661287441,0.045122,99663.0,99662.0,0.02023879]
[1733661287642,0.045202,99663.0,99662.0,0.02023879]
[1733661288446,0.045202,99663.0,99662.0,0.03104357]
[1733661288760,0.045202,99663.0,99662.0,0.02123879]
[1733661289050,0.045202,99663.0,99662.0,0.00977551]
[1733661289246,0.045202,99663.0,99662.0,0.00350501]
[1733661289948,0.045202,99663.0,99662.0,0.00852222]
[1733661290445,0.045202,99663.0,99662.0,0.00350501]
[1733661291256,0.0552531,99663.0,99662.0,0.00350501]
[1733661291644,0.14490559,99663.0,99662.0,0.00350501]
[1733661291844,0.0552531,99663.0,99662.0,0.00350501]
[1733661292050,0.0552531,99663.0,99662.0,0.0066408]
[1733661292359,0.045202,99663.0,99662.0,0.0066408]
[1733661292549,0.045202,99663.0,99662.0,0.00513579]
[1733661295256,0.045202,99663.0,99662.0,0.00513576]
[1733661299151,0.06558195,99663.0,99662.0,0.00513576]
[1733661302460,0.06558195,99663.0,99662.0,0.0101528]
[1733661307349,0.15520295,99663.0,99662.0,0.0101528]
[1733661307554,0.06558195,99663.0,99662.0,0.0101528]
[1733661308351,0.06658195,99663.0,99662.0,0.0091528]
[1733661308664,0.00408,99663.0,99662.0,0.0532758]
[1733661308961,0.00408,99663.0,99662.0,0.05954716]
[1733661309156,0.00408,99663.0,99662.0,0.09074716]
[1733661312158,0.00408,99663.0,99662.0,0.09104951]
[1733661312558,0.00408,99663.0,99662.0,0.09074716]
[1733661312760,0.00408,99663.0,99662.0,0.09074593]
[1733661316163,0.00408,99663.0,99662.0,0.076323]
[1733661316470,0.00408,99663.0,99662.0,0.09074593]
[1733661316661,0.12394301,99663.0,99662.0,0.27098705]
[1733661317454,0.12394301,99663.0,99662.0,0.09074593]
[1733661318352,0.12394301,99663.0,99662.0,0.27112343]
[1733661318653,0.12394301,99663.0,99662.0,0.09074593]
[1733661319466,0.12394301,99663.0,99662.0,0.27112378]
[1733661319660,0.12394301,99663.0,99662.0,0.09074593]
[1733661319861,0.12394301,99663.0,99662.0,0.08447509]
[1733661320062,0.12394301,99663.0,99662.0,0.09074593]
[1733661320367,0.12394301,99663.0,99662.0,0.09104966]
[1733661320665,0.12394301,99663.0,99662.0,0.09074593]
[1733661322063,0.00408,99663.0,99662.0,0.09074593]
[1733661322259,0.12416704,99663.0,99662.0,0.10328674]
[1733661322460,0.00408,99663.0,99662.0,0.10328674]
[1733661323158,0.00408,99663.0,99662.0,0.10328647]
[1733661323561,0.00408,99663.0,99662.0,0.1035902]
[1733661324070,0.00408,99663.0,99662.0,0.0723902]
[1733661324274,0.00408,99663.0,99662.0,0.07208647]
[1733661328480,0.00408,99663.0,99662.0,0.07208692]
[1733661329961,0.00408,99663.0,99662.0,0.25245013]
[1733661330169,0.00408,99663.0,99662.0,0.2380272]
[1733661330481,0.00408,99663.0,99662.0,0.0720862]
[1733661331370,0.1241544,99663.0,99662.0,0.25244919]
[1733661331570,0.00408,99663.0,99662.0,0.07208616]
[1733661332179,0.00408,99663.0,99662.0,0.05766395]
[1733661332467,0.00408,99663.0,99662.0,0.045123]
[1733661332669,0.00408,99663.0,99662.0,0.07208674]
[1733661333467,0.00408,99663.0,99662.0,0.0576643]
[1733661333661,8e-05,99663.0,99662.0,0.07408668]
[1733661333865,0.00108,99663.0,99662.0,0.31532916]
[1733661334060,8e-05,99663.0,99662.0,0.31432916]
[1733661334266,8e-05,99663.0,99662.0,0.07508668]
[1733661335176,8e-05,99663.0,99662.0,0.07308668]
[1733661335375,8e-05,99663.0,99662.0,0.07408668]
[1733661336472,0.12012629,99663.0,99662.0,0.07308668]
[1733661336675,8e-05,99663.0,99662.0,0.07408668]
[1733661336978,8e-05,99663.0,99662.0,0.31464217]
[1733661337486,8e-05,99663.0,99662.0,0.07408668]
[1733661337782,0.00108,99663.0,99662.0,0.07308668]
[1733661337977,0.00208,99663.0,99662.0,0.07208668]
[1733661338779,0.1519129,99663.0,99662.0,0.07208668]
[1733661339073,0.1519129,99663.0,99662.0,0.07208688]
[1733661339578,0.1539129,99663.0,99662.0,0.07208688]
[1733661340674,0.00408,99663.0,99662.0,0.07208688]
[1733661340877,0.1539129,99663.0,99662.0,0.07208688]
[1733661341073,0.00408,99663.0,99662.0,0.07208688]
[1733661341372,0.15426421,99663.0,99662.0,0.07208688]
[1733661341774,0.05284568,99663.0,99662.0,0.07208688]
[1733661342469,0.15426511,99663.0,99662.0,0.07208711]
[1733661342669,0.00408,99663.0,99662.0,0.07208711]
[1733661343674,0.05284568,99663.0,99662.0,0.07208711]
[1733661344071,0.15426267,99663.0,99662.0,0.07208711]
[1733661344580,0.00408,99663.0,99662.0,0.07208711]
[1733661349580,0.12409706,99663.0,99662.0,0.07208711]
[1733661350283,0.004,99663.0,99662.0,0.07208711]
[1733661353974,0.004,99663.0,99662.0,0.07208701]
[1733661356770,0.004,99663.0,99662.0,0.31281922]
[1733661358785,0.003,99663.0,99662.0,0.31381922]
[1733661359079,0.15018502,99664.0,99663.0,0.045122]
[1733661359285,0.04512,99669.0,99667.0,0.045121]
[1733661359286,0.04512,99668.0,99667.0,0.045121]
[1733661359577,0.04512,99668.0,99667.0,0.05954361]
[1733661360081,0.09388638,99668.0,99667.0,0.05954367]
[1733661360484,0.09488638,99668.0,99667.0,0.05954367]
[1733661360784,0.09488638,99668.0,99667.0,0.24011121]
[1733661360985,0.04612,99668.0,99667.0,0.05954367]
[1733661361383,0.04912,99668.0,99667.0,0.05954367]
[1733661368994,0.09788567,99668.0,99667.0,0.05954367]
[1733661369689,0.005,99687.0,99668.0,0.04512]
[1733661369889,0.005,99694.0,99693.0,0.045109]
[1733661370079,0.03051774,99701.0,99700.0,0.045106]
[1733661370279,0.00011774,99701.0,99700.0,0.07206545]
[1733661370489,0.00011774,99701.0,99700.0,0.07253991]
[1733661370686,0.0304,99713.0,99700.0,0.37278883]
[1733661370885,0.0304,99713.0,99712.0,0.4059]
[1733661371086,0.0304,99713.0,99712.0,0.42706559]
[1733661371292,0.0304,99713.0,99712.0,0.43333391]
[1733661372192,0.0414,99713.0,99712.0,0.43333391]
[1733661372493,0.0414,99713.0,99712.0,0.38823391]
[1733661372686,0.0414,99713.0,99712.0,0.02263391]
[1733661373292,0.045102,99708.0,99706.0,0.045103]
[1733661373681,8e-05,99707.0,99706.0,0.045103]
[1733661374979,8e-05,99707.0,99697.0,0.17973169]
[1733661375188,8e-05,99707.0,99700.0,0.045105]
[1733661375189,0.045106,99701.0,99700.0,0.045105]
[1733661377691,0.048106,99701.0,99700.0,0.045105]
[1733661377893,0.004,99701.0,99700.0,0.045105]
[1733661378197,0.003,99701.0,99700.0,0.045105]
[1733661382787,0.003,99701.0,99700.0,0.05011948]
[1733661383405,0.045095,99724.0,99700.0,0.05011948]
[1733661383406,0.005,99721.0,99718.0,0.045097]
[1733661383596,0.0311,99725.0,99719.0,0.3608]
[1733661383901,0.0311,99725.0,99719.0,0.36096]
[1733661384602,0.00908744,99720.0,99719.0,0.36096]
[1733661384905,0.00908744,99720.0,99719.0,0.3640934]
[1733661385297,0.01308744,99720.0,99719.0,0.3640934]
[1733661385493,0.01308744,99720.0,99719.0,0.4091904]
[1733661386314,0.05818444,99720.0,99719.0,0.0483904]
[1733661386499,0.05818444,99720.0,99719.0,0.045257]
[1733661387903,0.05818444,99720.0,99719.0,0.04839079]
[1733661390207,0.05518444,99720.0,99719.0,0.04939079]
[1733661390797,0.05518444,99720.0,99719.0,0.05440478]
[1733661391198,0.05318444,99720.0,99719.0,0.05440473]
[1733661392808,0.05318444,99720.0,99719.0,0.00930773]
[1733661393311,0.05318444,99720.0,99706.0,0.3608]
[1733661393498,0.045102,99707.0,99706.0,0.3608]
[1733661393900,0.031,99712.0,99700.0,0.3608]
[1733661394206,0.045185,99701.0,99700.0,0.045105]
[1733661395210,0.045185,99701.0,99700.0,0.047105]
[1733661395400,0.046185,99701.0,99700.0,0.047105]
[1733661396707,0.00108,99701.0,99700.0,0.047105]
[1733661396903,0.08971984,99701.0,99700.0,0.047105]
[1733661397108,8e-05,99701.0,99700.0,0.047105]
[1733661397904,0.00108,99701.0,99700.0,0.405905]
[1733661398210,0.00408,99701.0,99700.0,0.405905]
[1733661398409,0.00408,99701.0,99700.0,0.42961376]
[1733661398806,0.00108,99701.0,99700.0,0.43061376]
[1733661399014,0.00108,99701.0,99700.0,0.6708003]
[1733661399312,0.00108,99701.0,99700.0,0.43061376]
[1733661399717,8e-05,99701.0,99700.0,0.43061376]
[1733661399906,8e-05,99701.0,99700.0,0.43161376]
[1733661400303,8e-05,99701.0,99700.0,0.44184975]
[1733661400708,8e-05,99701.0,99700.0,0.44284975]
[1733661400909,8e-05,99701.0,99700.0,0.6727763]
[1733661401211,8e-05,99701.0,99700.0,0.6707763]
[1733661401406,8e-05,99701.0,99700.0,0.6717763]
[1733661402007,8e-05,99701.0,99700.0,0.43061376]
[1733661402209,8e-05,99701.0,99700.0,0.6717763]
[1733661402409,8e-05,99701.0,99700.0,0.07081376]
[1733661402613,0.045185,99701.0,99700.0,0.07081376]
[1733661402912,0.045185,99701.0,99700.0,0.05838767]
[1733661403103,8e-05,99701.0,99700.0,0.06982693]
[1733661403507,8e-05,99701.0,99700.0,0.06882693]
[1733661403705,0.00108,99701.0,99700.0,0.30898947]
[1733661404107,8e-05,99701.0,99700.0,0.30898947]
[1733661404312,0.00108,99701.0,99700.0,0.06882693]
[1733661404818,8e-05,99701.0,99700.0,0.07182693]
[1733661405512,8e-05,99701.0,99700.0,0.07396108]
[1733661406810,8e-05,99701.0,99700.0,0.07296108]
[1733661407908,8e-05,99701.0,99700.0,0.07196108]
[1733661408212,0.00108,99701.0,99700.0,0.07196108]
[1733661409505,0.00108,99701.0,99700.0,0.07296108]
[1733661409711,0.00208,99701.0,99700.0,0.07296108]
[1733661410106,0.00208,99701.0,99700.0,0.07196108]
[1733661410418,8e-05,99701.0,99700.0,0.07196108]
[1733661410916,8e-05,99701.0,99700.0,0.07396108]
[1733661411118,8e-05,99701.0,99700.0,0.07496108]
[1733661411415,8e-05,99701.0,99700.0,0.07296108]
[1733661412412,8e-05,99701.0,99700.0,0.05738767]
[1733661412716,8e-05,99701.0,99700.0,0.07296466]
[1733661413018,8e-05,99701.0,99700.0,0.31313764]
[1733661413316,8e-05,99701.0,99700.0,0.07296466]
[1733661414012,0.08971984,99701.0,99700.0,0.25241401]
[1733661414216,0.08971984,99701.0,99700.0,0.25411058]
[1733661414516,8e-05,99701.0,99700.0,0.07426809]
[1733661414715,0.00108,99701.0,99700.0,0.07226809]
[1733661414919,0.00108,99701.0,99700.0,0.07196466]
[1733661415114,0.00108,99701.0,99700.0,0.43306809]
[1733661415318,0.00108,99701.0,99700.0,0.61325152]
[1733661415521,0.00108,99701.0,99700.0,0.43306809]
[1733661415812,8e-05,99701.0,99700.0,0.43276466]
[1733661416019,8e-05,99701.0,99700.0,0.43306809]
[1733661416417,8e-05,99701.0,99700.0,0.43406809]
[1733661417218,8e-05,99701.0,99700.0,0.43376466]
[1733661417415,8e-05,99701.0,99700.0,0.43476466]
[1733661417618,8e-05,99701.0,99700.0,0.43606818]
[1733661417817,8e-05,99701.0,99700.0,0.43576466]
[1733661418121,0.00108,99701.0,99700.0,0.43376466]
[1733661418320,0.00108,99701.0,99700.0,0.43376482]
[1733661418624,8e-05,99701.0,99700.0,0.43476482]
[1733661419010,8e-05,99701.0,99700.0,0.43376482]
[1733661419213,0.00108,99701.0,99700.0,0.43376482]
[1733661419410,0.00108,99701.0,99700.0,0.43276482]
[1733661420014,0.00108,99701.0,99700.0,0.67313719]
[1733661420212,0.00108,99701.0,99700.0,0.67413719]
[1733661420723,0.09120348,99701.0,99700.0,0.43376482]
[1733661420921,0.09012348,99706.0,99705.0,0.045103]
[1733661421222,0.031,99712.0,99711.0,0.045101]
[1733661421415,0.031,99712.0,99711.0,0.43276082]
[1733661421622,0.031,99712.0,99711.0,0.43292082]
[1733661422626,0.031,99712.0,99711.0,0.73340198]
[1733661423017,0.031,99712.0,99711.0,0.43292082]
[1733661423717,0.032,99712.0,99711.0,0.36597454]
[1733661423918,0.0771,99712.0,99711.0,0.00016]
[1733661424326,0.0811,99712.0,99711.0,0.00016]
[1733661424911,0.0801,99712.0,99711.0,0.00016]
[1733661425523,0.0811,99712.0,99711.0,0.00016]
[1733661426112,0.09109658,99712.0,99711.0,0.00016]
[1733661426519,0.09009658,99712.0,99711.0,0.00016]
[1733661426727,0.09109658,99712.0,99711.0,0.00016]
[1733661427529,0.09309658,99712.0,99711.0,0.00016]
[1733661427723,0.09409658,99712.0,99711.0,0.00116]
[1733661428228,0.09509658,99712.0,99711.0,0.00116]
[1733661429126,0.1438437,99712.0,99711.0,0.00116]
[1733661431935,0.1438437,99712.0,99711.0,0.00742831]
[1733661433231,0.1438437,99712.0,99711.0,0.00116]
[1733661433438,0.5046437,99712.0,99711.0,0.00116]
[1733661433836,0.5046437,99712.0,99711.0,0.00617465]
[1733661434837,0.68384869,99712.0,99711.0,0.01244294]
[1733661435347,0.67385211,99712.0,99711.0,0.01244294]
[1733661435547,0.64285211,99712.0,99711.0,0.05754394]
[1733661435847,0.56507454,99712.0,99711.0,0.06067808]
[1733661436035,0.009,99712.0,99711.0,0.30101359]
[1733661436342,0.009,99712.0,99711.0,0.06067808]
[1733661436951,0.009,99712.0,99711.0,0.06067719]
[1733661437240,0.009,99712.0,99711.0,0.07343111]
[1733661437446,0.009,99712.0,99711.0,0.07312773]
[1733661437841,0.009,99712.0,99711.0,0.07343111]
[1733661438558,0.009,99712.0,99711.0,0.07312773]
[1733661439449,0.009,99712.0,99711.0,0.07343111]
[1733661440350,0.009,99712.0,99711.0,0.0731266]
[1733661441149,0.0541,99712.0,99711.0,0.0731266]
[1733661441353,0.0541,99712.0,99711.0,0.30100315]
[1733661441543,0.0541,99712.0,99711.0,0.06067719]
[1733661441954,0.0541,99712.0,99711.0,0.31345168]
[1733661442340,0.0541,99712.0,99711.0,0.07312572]
[1733661442544,0.0541,99712.0,99711.0,0.31345168]
[1733661442851,0.0541,99712.0,99711.0,0.31345155]
[1733661443049,0.0541,99712.0,99711.0,0.30100315]
[1733661443244,0.14421509,99712.0,99711.0,0.06067719]
[1733661443451,0.14418376,99712.0,99711.0,0.06067719]
[1733661444153,0.0541,99712.0,99711.0,0.06067719]
[1733661444949,0.0541,99712.0,99711.0,0.06098065]
[1733661445253,0.0541,99712.0,99711.0,0.06067719]
[1733661445955,0.0541,99712.0,99711.0,0.06098059]
[1733661447360,0.0541,99712.0,99711.0,0.06067719]
[1733661447747,0.0541,99712.0,99711.0,0.06098072]
[1733661447948,0.0541,99712.0,99711.0,0.06067719]
[1733661449753,0.009,99712.0,99711.0,0.06067719]
[1733661451655,0.009,99712.0,99711.0,0.0731268]
[1733661451859,0.009,99712.0,99711.0,0.31345276]
[1733661452050,0.0541,99712.0,99711.0,0.31345276]
[1733661452452,0.0541,99712.0,99711.0,0.0731268]
[1733661452753,0.0541,99712.0,99711.0,0.01557619]
[1733661452953,0.1185,99712.0,99711.0,0.01557619]
[1733661456459,0.1185,99712.0,99711.0,0.19584052]
[1733661458954,0.1185,99712.0,99711.0,0.01557619]
[1733661459554,0.1185,99712.0,99711.0,0.00116]
[1733661460852,0.26867454,99712.0,99711.0,0.00116]